fUSD/lending_fUSD_20240427
["ID","MTS","AMOUNT","RATE_DAILY","PERIOD"]
[323744607,1714229452612,-500.0,0.00011232,2]
[323744608,1714229452622,-1460.35,0.00011232,2]
[323744609,1714229452631,-500.0,0.00011232,2]
[323744610,1714229452642,-1806.86,0.00011232,2]
[323744611,1714229452651,-829.0,0.00011232,2]
[323744612,1714229452660,-1364.54,0.00011232,2]
[323744613,1714229452670,-500.0,0.00011232,2]
[323744614,1714229452679,-500.0,0.00011232,2]
[323744615,1714229452688,-1900.35,0.00011232,2]
[323744616,1714229452698,-918.3,0.00011232,2]
[323744617,1714229452707,-280.80721905,0.00011232,2]
[323744618,1714229452717,-500.0,0.00011232,2]
[323744619,1714229452726,-1888.49,0.00011232,2]
[323744620,1714229452735,-520.15,0.00011232,2]
[323744621,1714229452745,-2149.49,0.00011232,2]
[323744622,1714229452755,-2172.29,0.00011232,2]
[323744623,1714229452764,-1243.08,0.00011232,2]
[323744624,1714229452773,-500.0,0.00011232,2]
[323744625,1714229452783,-500.0,0.00011232,2]
[323744626,1714229452792,-854.67,0.00011232,2]
[323744627,1714229452801,-500.0,0.00011232,2]
[323744628,1714229452810,-500.0,0.00011232,2]
[323744629,1714229452819,-500.0,0.00011232,2]
[323744630,1714229452829,-500.0,0.00011232,2]
[323744631,1714229452838,-989.0,0.00011232,2]
[323744632,1714229452847,-1209.85,0.00011232,2]
[323744633,1714229452856,-500.0,0.00011232,2]
[323744634,1714229452865,-560.7,0.00011232,2]
[323744635,1714229452875,-500.0,0.00011232,2]
[323744636,1714229452884,-959.82,0.00011232,2]
[323744637,1714229452895,-500.0,0.00011232,2]
[323744638,1714229452904,-500.0,0.00011232,2]
[323744639,1714229452913,-530.09,0.00011232,2]
[323744640,1714229452922,-500.0,0.00011232,2]
[323744641,1714229452932,-1008.95,0.00011232,2]
[323744642,1714229452941,-500.0,0.00011232,2]
[323744643,1714229452950,-500.0,0.00011232,2]
[323744644,1714229452959,-1459.27,0.00011232,2]
[323744645,1714229452969,-2768.71,0.00011232,2]
[323744646,1714229452978,-500.0,0.00011232,2]
[323744647,1714229452991,-16234.13,0.00011232,2]
[323744648,1714229453000,-500.0,0.00011232,2]
[323744649,1714229453010,-500.0,0.00011232,2]
[323744650,1714229453019,-500.0,0.00011232,2]
[323744651,1714229453028,-2123.31,0.00011232,2]
[323744652,1714229453038,-500.0,0.00011232,2]
[323744653,1714229453048,-6724.94,0.00011232,2]
[323744654,1714229453057,-789.27,0.00011232,2]
[323744655,1714229453067,-500.0,0.00011232,2]
[323744656,1714229453076,-940.04,0.00011232,2]
[323744657,1714229453086,-500.0,0.00011232,2]
[323744658,1714229453095,-3390.84,0.00011232,2]
[323744659,1714229453105,-911.03,0.00011232,2]
[323744660,1714229453115,-500.0,0.00011232,2]
[323744661,1714229453124,-1043.33,0.00011232,2]
[323744662,1714229453134,-500.0,0.00011232,2]
[323744663,1714229453145,-686.56,0.00011232,2]
[323744664,1714229453154,-500.0,0.00011232,2]
[323744665,1714229453164,-801.56,0.00011232,2]
[323744666,1714229453173,-500.0,0.00011232,2]
[323744667,1714229453182,-1303.11,0.00011232,2]
[323744668,1714229453192,-551.83,0.00011232,2]
[323744669,1714229453201,-500.0,0.00011232,2]
[323744670,1714229453210,-500.0,0.00011232,2]
[323744671,1714229453220,-4000.64,0.00011232,2]
[323744672,1714229453229,-500.0,0.00011232,2]
[323744673,1714229453238,-1779.1,0.00011232,2]
[323744674,1714229453247,-1110.63,0.00011232,2]
[323744675,1714229453257,-818.34,0.00011232,2]
[323744676,1714229453266,-680.37,0.00011232,2]
[323744677,1714229453275,-500.0,0.00011232,2]
[323744678,1714229453284,-500.0,0.00011232,2]
[323744679,1714229453294,-500.0,0.00011232,2]
[323744680,1714229453303,-500.0,0.00011232,2]
[323744681,1714229453313,-938.64,0.00011232,2]
[323744682,1714229453325,-500.0,0.00011232,2]
[323744683,1714229453335,-513.38,0.00011232,2]
[323744684,1714229453345,-1120.33,0.00011232,2]
[323744685,1714229453354,-500.0,0.00011232,2]
[323744686,1714229453364,-500.0,0.00011232,2]
[323744687,1714229453373,-500.0,0.00011232,2]
[323744688,1714229453384,-2348.53,0.00011232,2]
[323744689,1714229453396,-500.0,0.00011232,2]
[323744690,1714229453406,-1143.83,0.00011232,2]
[323744691,1714229453415,-500.0,0.00011232,2]
[323744692,1714229453425,-500.0,0.00011232,2]
[323744693,1714229453435,-2033.72,0.00011232,2]
[323744694,1714229453444,-1265.42,0.00011232,2]
[323744695,1714229453453,-1525.96,0.00011232,2]
[323744696,1714229453464,-2376.63,0.00011232,2]
[323744697,1714229453473,-992.88,0.00011232,2]
[323744698,1714229453482,-500.0,0.00011232,2]
[323744699,1714229453491,-500.0,0.00011232,2]
[323744700,1714229453500,-511.55,0.00011232,2]
[323744701,1714229453509,-1154.69,0.00011232,2]
[323744702,1714229453518,-1688.53,0.00011232,2]
[323744703,1714229453527,-500.0,0.00011232,2]
[323744704,1714229453537,-1554.36,0.00011232,2]
[323744705,1714229453546,-500.0,0.00011232,2]
[323744706,1714229453556,-1783.62,0.00011232,2]
[323744707,1714229453565,-3671.0,0.00011232,2]
[323744708,1714229453574,-507.90453595,0.00011232,2]
[323744709,1714229453583,-1941.09,0.00011232,2]
[323744710,1714229453594,-500.0,0.00011232,2]
[323744711,1714229453603,-500.0,0.00011232,2]
[323744712,1714229453612,-560.0,0.00011232,2]
[323744713,1714229453621,-2797.22,0.00011232,2]
[323744714,1714229453631,-500.0,0.00011232,2]
[323744715,1714229453642,-356.06,0.00011232,2]
[323744716,1714229453650,-712.77,0.00011232,2]
[323744717,1714229453659,-2018.69,0.00011232,2]
[323744718,1714229453669,-500.0,0.00011232,2]
[323744719,1714229453678,-1792.59,0.00011232,2]
[323744720,1714229453687,-600.18,0.00011232,2]
[323744721,1714229453697,-1159.33,0.00011232,2]
[323744722,1714229453706,-915.9,0.00011232,2]
[323744723,1714229453716,-500.0,0.00011232,2]
[323744724,1714229453725,-882.84,0.00011232,2]
[323744725,1714229453735,-821.49,0.00011232,2]
[323744726,1714229453745,-150.08846795,0.00011232,2]
[323744727,1714229453756,-500.0,0.00011232,2]
[323744728,1714229453765,-608.92,0.00011232,2]
[323744729,1714229453775,-500.0,0.00011232,2]
[323744730,1714229453785,-1984.53,0.00011232,2]
[323744731,1714229453795,-1937.96,0.00011232,2]
[323744732,1714229453805,-500.0,0.00011232,2]
[323744733,1714229453815,-500.0,0.00011232,2]
[323744734,1714229453824,-706.21,0.00011232,2]
[323744735,1714229453835,-988.37,0.00011232,2]
[323744736,1714229453844,-2579.85,0.00011232,2]
[323744737,1714229453854,-980.4,0.00011232,2]
[323744738,1714229453864,-500.0,0.00011232,2]
[323744739,1714229453874,-1411.08,0.00011232,2]
[323744740,1714229453884,-732.9,0.00011232,2]
[323744741,1714229453893,-500.0,0.00011232,2]
[323744742,1714229453902,-500.0,0.00011232,2]
[323744743,1714229453911,-640.53,0.00011232,2]
[323744744,1714229453921,-530.91,0.00011232,2]
[323744745,1714229453930,-4597.99,0.00011232,2]
[323744746,1714229453940,-500.0,0.00011232,2]
[323744747,1714229453949,-1136.82,0.00011232,2]
[323744748,1714229453961,-626.8368507,0.00011232,2]
[323744749,1714229453970,-1969.89,0.00011232,2]
[323744750,1714229453979,-500.0,0.00011232,2]
[323744751,1714229453988,-3438.71,0.00011232,2]
[323744752,1714229453997,-500.0,0.00011232,2]
[323744753,1714229454007,-1450.38,0.00011232,2]
[323744754,1714229454016,-1720.52,0.00011232,2]
[323744755,1714229454025,-633.3,0.00011232,2]
[323744756,1714229454034,-500.0,0.00011232,2]
[323744757,1714229454043,-502.93,0.00011232,2]
[323744758,1714229454052,-500.0,0.00011232,2]
[323744759,1714229454062,-769.83,0.00011232,2]
[323744760,1714229454071,-4461.22,0.00011232,2]
[323744761,1714229454080,-500.0,0.00011232,2]
[323744762,1714229454090,-500.0,0.00011232,2]
[323744763,1714229454099,-2069.51,0.00011232,2]
[323744764,1714229454108,-654.02,0.00011232,2]
[323744765,1714229454117,-500.0,0.00011232,2]
[323744766,1714229454126,-2091.06,0.00011232,2]
[323744767,1714229454135,-1788.4,0.00011232,2]
[323744768,1714229454145,-889.74,0.00011232,2]
[323744769,1714229454154,-776.35,0.00011232,2]
[323744770,1714229454163,-500.0,0.00011232,2]
[323744771,1714229454172,-500.0,0.00011232,2]
[323744772,1714229454181,-1999.8,0.00011232,2]
[323744773,1714229454190,-1547.37,0.00011232,2]
[323744774,1714229454199,-500.0,0.00011232,2]
[323744775,1714229454208,-500.0,0.00011232,2]
[323744776,1714229454217,-500.0,0.00011232,2]
[323744777,1714229454228,-735.5,0.00011232,2]
[323744778,1714229454238,-500.0,0.00011232,2]
[323744779,1714229454248,-500.0,0.00011232,2]
[323744780,1714229454257,-628.03,0.00011232,2]
[323744781,1714229454269,-806.1,0.00011232,2]
[323744782,1714229454279,-500.0,0.00011232,2]
[323744783,1714229454288,-1581.67,0.00011232,2]
[323744784,1714229454297,-766.18,0.00011232,2]
[323744785,1714229454306,-500.0,0.00011232,2]
[323744786,1714229454321,-527.94,0.00011232,2]
[323744787,1714229454332,-500.0,0.00011232,2]
[323744788,1714229454342,-500.0,0.00011232,2]
[323744789,1714229454350,-1948.72,0.00011232,2]
[323744790,1714229454360,-1053.71,0.00011232,2]
[323744791,1714229454370,-244.29545262,0.00011232,2]
[323744792,1714229454379,-335.98,0.00011232,2]
[323744793,1714229454388,-500.0,0.00011232,2]
[323744794,1714229454398,-1287.47,0.00011232,2]
[323744795,1714229454407,-500.0,0.00011232,2]
[323744796,1714229454416,-1067.42,0.00011232,2]
[323744797,1714229454425,-1409.44,0.00011232,2]
[323744798,1714229454434,-500.0,0.00011232,2]
[323744799,1714229454443,-802.63,0.00011232,2]
[323744800,1714229454452,-523.66,0.00011232,2]
[323744801,1714229454461,-745.93,0.00011232,2]
[323744802,1714229454470,-500.0,0.00011232,2]
[323744803,1714229454480,-1325.8,0.00011232,2]
[323744804,1714229454489,-612.39199713,0.00011269,2]
[323744805,1714229454498,-193.53761118,0.00011323,2]
[323744806,1714229454507,-462.0,0.0001133,2]
[323744807,1714229454515,-1395.0,0.0001133,2]
[323744808,1714229454524,-970.0,0.0001133,2]
[323744809,1714229454533,-2296.0,0.0001133,2]
[323744810,1714229454543,-1228.0,0.0001133,2]
[323744811,1714229454553,-1257.0,0.0001133,2]
[323744812,1714229454562,-542.0,0.0001133,2]
[323744813,1714229454572,-437.0,0.0001133,2]
[323744814,1714229454581,-208.0,0.0001133,2]
[323744815,1714229454590,-610.0,0.0001133,2]
[323744816,1714229454599,-1860.0,0.0001133,2]
[323744817,1714229454609,-807.0,0.0001133,2]
[323744818,1714229454618,-1475.0,0.0001133,2]
[323744819,1714229454628,-3131.0,0.0001133,2]
[323744820,1714229454637,-420.0,0.0001133,2]
[323744821,1714229454648,-2447.0,0.0001133,2]
[323744822,1714229454658,-1642.0,0.0001133,2]
[323744823,1714229454667,-150.0,0.0001133,2]
[323744824,1714229454678,-443.0,0.0001133,2]
[323744825,1714229454688,-215.0,0.0001133,2]
[323744826,1714229454697,-1140.0,0.0001133,2]
[323744827,1714229454706,-37720.0,0.0001133,2]
[323744828,1714229454715,-5734.0,0.0001133,2]
[323744829,1714229454724,-5897.0,0.0001133,2]
[323744830,1714229454733,-2290.0,0.0001133,2]
[323744831,1714229454743,-150.0,0.0001133,2]
[323744832,1714229454752,-150.0,0.0001133,2]
[323744833,1714229454761,-1056.0,0.0001133,2]
[323744834,1714229454770,-150.0,0.0001133,2]
[323744835,1714229454779,-200.0,0.0001133,2]
[323744836,1714229454789,-18613.74495697,0.00011374,2]
[323744837,1714229454798,-381.94,0.00011389,2]
[323744838,1714229454807,-200.01599054,0.00011406,2]
[323744839,1714229454817,-612.39199713,0.00011406,2]
[323744840,1714229454826,-500.0,0.00011434,2]
[323744841,1714229454835,-500.0,0.00011434,2]
[323744842,1714229454845,-500.0,0.00011434,2]
[323744843,1714229454854,-500.0,0.00011434,2]
[323744844,1714229454864,-1000.0,0.000115,2]
[323744845,1714229455045,-500.0,0.00011505,2]
[323744846,1714229455056,-500.0,0.00011506,2]
[323744847,1714229455066,-500.0,0.00011506,2]
[323744848,1714229455075,-506.55275774,0.00011506,2]
[323744849,1714229455085,-500.0,0.00011506,2]
[323744850,1714229455094,-500.0,0.00011506,2]
[323744851,1714229455104,-549.11,0.00011506,2]
[323744852,1714229455113,-638.68,0.00011506,2]
[323744853,1714229455123,-630.2568856,0.00011506,2]
[323744854,1714229455133,-500.0,0.00011506,2]
[323744855,1714229455143,-500.0,0.00011506,2]
[323744856,1714229455158,-500.0,0.00011506,2]
[323744857,1714229455170,-500.0,0.00011506,2]
[323744858,1714229455181,-500.0,0.00011506,2]
[323744859,1714229455190,-500.0,0.00011506,2]
[323744860,1714229455200,-522.87,0.00011506,2]
[323744861,1714229455210,-500.0,0.00011506,2]
[323744862,1714229455220,-500.0,0.00011506,2]
[323744863,1714229455234,-512.25,0.00011506,2]
[323744864,1714229455254,-500.0,0.00011506,2]
[323744865,1714229455263,-500.0,0.00011506,2]
[323744866,1714229455273,-500.0,0.00011506,2]
[323744867,1714229455282,-500.0,0.00011506,2]
[323744868,1714229455291,-820.52,0.00011506,2]
[323744869,1714229455300,-500.0,0.00011506,2]
[323744870,1714229455313,-500.0,0.00011506,2]
[323744871,1714229455322,-222.72888796,0.00011506,2]
[323744872,1714229455331,-500.0,0.00011506,2]
[323744873,1714229455342,-500.0,0.00011506,2]
[323744874,1714229455351,-500.0,0.00011506,2]
[323744875,1714229455361,-500.0,0.00011506,2]
[323744876,1714229455370,-500.0,0.00011506,2]
[323744877,1714229455379,-288.65,0.00011506,2]
[323744878,1714229455389,-500.0,0.00011506,2]
[323744879,1714229455399,-1190.49,0.00011506,2]
[323744880,1714229455409,-500.0,0.00011506,2]
[323744881,1714229455418,-1273.51,0.00011506,2]
[323744882,1714229455428,-230.3,0.00011506,2]
[323744883,1714229455437,-500.0,0.00011506,2]
[323744884,1714229455446,-639.87,0.00011506,2]
[323744885,1714229455455,-500.0,0.00011506,2]
[323744886,1714229455464,-626.65,0.00011506,2]
[323744887,1714229455475,-500.0,0.00011506,2]
[323744888,1714229455484,-500.0,0.00011506,2]
[323744889,1714229455493,-500.0,0.00011506,2]
[323744890,1714229455503,-545.4,0.00011506,2]
[323744891,1714229455512,-500.0,0.00011506,2]
[323744892,1714229455520,-500.0,0.00011506,2]
[323744893,1714229455529,-500.0,0.00011506,2]
[323744894,1714229455538,-500.0,0.00011506,2]
[323744895,1714229455548,-771.92,0.00011506,2]
[323744896,1714229455557,-500.0,0.00011506,2]
[323744897,1714229455567,-846.79,0.00011506,2]
[323744898,1714229455576,-424.05,0.00011506,2]
[323744899,1714229455584,-952.96,0.00011506,2]
[323744900,1714229455594,-500.0,0.00011506,2]
[323744901,1714229455603,-500.0,0.00011506,2]
[323744902,1714229455612,-500.0,0.00011506,2]
[323744903,1714229455621,-500.0,0.00011506,2]
[323744904,1714229455630,-1178.67,0.00011506,2]
[323744905,1714229455640,-1079.0,0.00011506,2]
[323744906,1714229455649,-1105.4,0.00011506,2]
[323744907,1714229455658,-1124.06,0.00011506,2]
[323744908,1714229455667,-500.0,0.00011506,2]
[323744909,1714229455677,-500.0,0.00011506,2]
[323744910,1714229455686,-660.93,0.00011506,2]
[323744911,1714229455695,-500.0,0.00011506,2]
[323744912,1714229455704,-500.0,0.00011506,2]
[323744913,1714229455714,-500.0,0.00011506,2]
[323744914,1714229455723,-500.0,0.00011506,2]
[323744915,1714229455732,-783.18,0.00011506,2]
[323744916,1714229455741,-677.29,0.00011506,2]
[323744917,1714229455751,-559.77,0.00011506,2]
[323744918,1714229455760,-561.17,0.00011506,2]
[323744919,1714229455769,-500.0,0.00011506,2]
[323744920,1714229455779,-644.51,0.00011506,2]
[323744921,1714229455789,-866.07,0.00011506,2]
[323744922,1714229455798,-507.85,0.00011506,2]
[323744923,1714229455807,-500.0,0.00011506,2]
[323744924,1714229455816,-500.0,0.00011506,2]
[323744925,1714229455826,-500.0,0.00011506,2]
[323744926,1714229455835,-500.0,0.00011506,2]
[323744927,1714229455844,-213.77609594,0.00011506,2]
[323744928,1714229455854,-500.77,0.00011506,2]
[323744929,1714229455863,-307.92,0.00011506,2]
[323744930,1714229455873,-500.0,0.00011506,2]
[323744931,1714229455882,-1310.88,0.00011506,2]
[323744932,1714229455892,-500.0,0.00011506,2]
[323744933,1714229455901,-784.57,0.00011506,2]
[323744934,1714229455911,-524.18,0.00011506,2]
[323744935,1714229455921,-500.0,0.00011506,2]
[323744936,1714229455930,-500.0,0.00011506,2]
[323744937,1714229455939,-1101.88,0.00011506,2]
[323744938,1714229455949,-641.03,0.00011506,2]
[323744939,1714229455958,-530.68,0.00011506,2]
[323744940,1714229455967,-500.0,0.00011506,2]
[323744941,1714229455976,-569.41,0.00011506,2]
[323744942,1714229455985,-500.0,0.00011506,2]
[323744943,1714229455994,-500.0,0.00011506,2]
[323744944,1714229456004,-501.27,0.00011506,2]
[323744945,1714229456013,-567.27,0.00011506,2]
[323744946,1714229456024,-500.0,0.00011506,2]
[323744947,1714229456033,-500.0,0.00011506,2]
[323744948,1714229456042,-500.0,0.00011506,2]
[323744949,1714229456051,-500.0,0.00011506,2]
[323744950,1714229456061,-355.55794215,0.00011506,2]
[323744951,1714229456070,-500.0,0.00011506,2]
[323744952,1714229456079,-855.49,0.00011506,2]
[323744953,1714229456089,-500.0,0.00011506,2]
[323744954,1714229456098,-500.0,0.00011506,2]
[323744955,1714229456107,-500.0,0.00011506,2]
[323744956,1714229456116,-500.0,0.00011506,2]
[323744957,1714229456125,-787.54,0.00011506,2]
[323744958,1714229456134,-500.0,0.00011506,2]
[323744959,1714229456144,-500.0,0.00011506,2]
[323744960,1714229456153,-605.66,0.00011506,2]
[323744961,1714229456163,-1411.92,0.00011506,2]
[323744962,1714229456172,-500.0,0.00011506,2]
[323744963,1714229456181,-500.0,0.00011506,2]
[323744964,1714229456190,-934.18,0.00011506,2]
[323744965,1714229456199,-500.0,0.00011506,2]
[323744966,1714229456208,-500.0,0.00011506,2]
[323744967,1714229456217,-500.0,0.00011506,2]
[323744968,1714229456226,-500.0,0.00011506,2]
[323744969,1714229456236,-500.0,0.00011506,2]
[323744970,1714229456247,-644.09,0.00011506,2]
[323744971,1714229456256,-2613.61,0.00011506,2]
[323744972,1714229456265,-866.54,0.00011506,2]
[323744973,1714229456275,-500.0,0.00011506,2]
[323744974,1714229456285,-526.63,0.00011506,2]
[323744975,1714229456294,-505.63893658,0.00011506,2]
[323744976,1714229456305,-500.0,0.00011506,2]
[323744977,1714229456319,-871.91,0.00011506,2]
[323744978,1714229456329,-507.4,0.00011506,2]
[323744979,1714229456338,-500.0,0.00011506,2]
[323744980,1714229456349,-500.0,0.00011506,2]
[323744981,1714229456359,-728.51,0.00011506,2]
[323744982,1714229456369,-500.0,0.00011506,2]
[323744983,1714229456380,-1645.42,0.00011506,2]
[323744984,1714229456389,-500.0,0.00011506,2]
[323744985,1714229456399,-869.33,0.00011506,2]
[323744986,1714229456408,-601.05,0.00011506,2]
[323744987,1714229456418,-512.04,0.00011506,2]
[323744988,1714229456427,-500.0,0.00011506,2]
[323744989,1714229456437,-938.6,0.00011506,2]
[323744990,1714229456447,-1150.5,0.00011506,2]
[323744991,1714229456456,-556.22,0.00011506,2]
[323744992,1714229456466,-3660.66,0.00011506,2]
[323744993,1714229456475,-10188.34,0.00011506,2]
[323744994,1714229456484,-500.0,0.00011506,2]
[323744995,1714229456494,-1460.35,0.00011506,2]
[323744996,1714229456505,-500.0,0.00011506,2]
[323744997,1714229456514,-1806.86,0.00011506,2]
[323744998,1714229456523,-829.0,0.00011506,2]
[323744999,1714229456533,-1364.54,0.00011506,2]
[323745000,1714229456543,-500.0,0.00011506,2]
[323745001,1714229456553,-1900.35,0.00011506,2]
[323745002,1714229456562,-918.3,0.00011506,2]
[323745003,1714229456572,-500.0,0.00011506,2]
[323745004,1714229456581,-1888.49,0.00011506,2]
[323745005,1714229456591,-520.15,0.00011506,2]
[323745006,1714229456601,-2149.49,0.00011506,2]
[323745007,1714229456611,-2172.29,0.00011506,2]
[323745008,1714229456620,-1243.08,0.00011506,2]
[323745009,1714229456629,-500.0,0.00011506,2]
[323745010,1714229456639,-854.67,0.00011506,2]
[323745011,1714229456649,-500.0,0.00011506,2]
[323745012,1714229456658,-500.0,0.00011506,2]
[323745013,1714229456668,-989.0,0.00011506,2]
[323745014,1714229456677,-1209.85,0.00011506,2]
[323745015,1714229456686,-500.0,0.00011506,2]
[323745016,1714229456696,-500.0,0.00011506,2]
[323745017,1714229456707,-959.82,0.00011506,2]
[323745018,1714229456717,-500.0,0.00011506,2]
[323745019,1714229456729,-530.09,0.00011506,2]
[323745020,1714229456739,-1008.95,0.00011506,2]
[323745021,1714229456749,-500.0,0.00011506,2]
[323745022,1714229456759,-1459.27,0.00011506,2]
[323745023,1714229456768,-2768.71,0.00011506,2]
[323745024,1714229456778,-500.0,0.00011506,2]
[323745025,1714229456787,-14147.18647302,0.00011506,2]
[323745026,1714229457132,-2086.94352698,0.00011506,2]
[323745027,1714229457142,-500.0,0.00011506,2]
[323745028,1714229457151,-2123.31,0.00011506,2]
[323745029,1714229457161,-6724.94,0.00011506,2]
[323745030,1714229457170,-789.27,0.00011506,2]
[323745031,1714229457180,-36.09871557,0.00011506,2]
[323745032,1714229457333,-463.90128443,0.00011506,2]
[323745033,1714229457342,-940.04,0.00011506,2]
[323745034,1714229457351,-500.0,0.00011506,2]
[323745035,1714229457361,-3390.84,0.00011506,2]
[323745036,1714229457370,-911.03,0.00011506,2]
[323745037,1714229457380,-297.15972543,0.00011506,2]
[323745038,1714229457390,-1043.33,0.00011506,2]
[323745039,1714229457401,-500.0,0.00011506,2]
[323745040,1714229457411,-686.56,0.00011506,2]
[323745041,1714229457420,-500.0,0.00011506,2]
[323745042,1714229457429,-801.56,0.00011506,2]
[323745043,1714229457439,-1303.11,0.00011506,2]
[323745044,1714229457448,-188.74015704,0.00011506,2]
[323745045,1714229457457,-4000.64,0.00011506,2]
[323745046,1714229457466,-315.37721309,0.00011506,2]
[323745047,1714229457477,-184.62278691,0.00011506,2]
[323745048,1714229457486,-696.67321309,0.00011506,2]
[323745049,1714229458369,-500.0,0.00010958,2]
[323745050,1714229458379,-500.0,0.00011232,2]
[323745051,1714229458390,-997.13,0.00011506,2]
[323745052,1714229458402,-85.29678691,0.00011506,2]
[323745053,1714229458411,-242.05380452,0.00011506,2]
[323745054,1714229458435,-750.0,0.00011506,2]
[323745055,1714229458446,-118.57619548,0.00011506,2]
[323745056,1714229458456,-818.34,0.00011506,2]
[323745057,1714229458465,-680.37,0.00011506,2]
[323745058,1714229458474,-500.0,0.00011506,2]
[323745059,1714229458483,-500.0,0.00011506,2]
[323745060,1714229458492,-500.0,0.00011506,2]
[323745061,1714229458501,-500.0,0.00011506,2]
[323745062,1714229458510,-938.64,0.00011506,2]
[323745063,1714229458521,-513.38,0.00011506,2]
[323745064,1714229458530,-1120.33,0.00011506,2]
[323745065,1714229458540,-286.63053472,0.00011506,2]
[323745066,1714229458549,-500.0,0.00011506,2]
[323745067,1714229458558,-500.0,0.00011506,2]
[323745068,1714229458567,-2348.53,0.00011506,2]
[323745069,1714229458577,-1143.83,0.00011506,2]
[323745070,1714229458586,-500.0,0.00011506,2]
[323745071,1714229458596,-2033.72,0.00011506,2]
[323745072,1714229458606,-1265.42,0.00011506,2]
[323745073,1714229458616,-1525.96,0.00011506,2]
[323745074,1714229458625,-2376.63,0.00011506,2]
[323745075,1714229458635,-992.88,0.00011506,2]
[323745076,1714229458646,-295.42729781,0.00011506,2]
[323745077,1714229458656,-512.86627891,0.00011506,2]
[323745078,1714229458665,-511.55,0.00011506,2]
[323745079,1714229458675,-1154.69,0.00011506,2]
[323745080,1714229458684,-1688.53,0.00011506,2]
[323745081,1714229458694,-479.33611811,0.00011506,2]
[323745082,1714229458703,-1554.36,0.00011506,2]
[323745083,1714229458712,-500.0,0.00011506,2]
[323745084,1714229458722,-1783.62,0.00011506,2]
[323745085,1714229458731,-3671.0,0.00011506,2]
[323745086,1714229458740,-1941.09,0.00011506,2]
[323745087,1714229458750,-500.0,0.00011506,2]
[323745088,1714229458758,-500.0,0.00011506,2]
[323745089,1714229458768,-560.0,0.00011506,2]
[323745090,1714229458777,-2797.22,0.00011506,2]
[323745091,1714229458787,-500.0,0.00011506,2]
[323745092,1714229458796,-712.77,0.00011506,2]
[323745093,1714229458805,-2018.69,0.00011506,2]
[323745094,1714229458814,-500.0,0.00011506,2]
[323745095,1714229458824,-1792.59,0.00011506,2]
[323745096,1714229458833,-600.18,0.00011506,2]
[323745097,1714229458843,-1159.33,0.00011506,2]
[323745098,1714229458853,-915.9,0.00011506,2]
[323745099,1714229458862,-882.84,0.00011506,2]
[323745100,1714229458871,-821.49,0.00011506,2]
[323745101,1714229458881,-500.0,0.00011506,2]
[323745102,1714229458890,-608.92,0.00011506,2]
[323745103,1714229458900,-500.0,0.00011506,2]
[323745104,1714229458909,-1984.53,0.00011506,2]
[323745105,1714229458920,-1937.96,0.00011506,2]
[323745106,1714229458931,-500.0,0.00011506,2]